bitfinex/quotes_ETHUSD_20241001
["timestamp","ask_amount","ask_price","bid_price","bid_amount"]
[1727774574038,5.82746124,2645.9,2645.3,21.84604109]
[1727774574242,3.77974,2645.7,2645.3,21.84604109]
[1727774574443,0.09450334,2645.6,2645.4,1.21355474]
[1727774574629,0.09450334,2645.6,2645.4,2.82059583]
[1727774575743,0.09450334,2645.6,2645.4,1.21355474]
[1727774576057,3.87443334,2645.6,2645.4,1.21355474]
[1727774576260,3.87443334,2645.6,2645.3,23.7227567]
[1727774577212,3.77993,2645.6,2645.3,23.7227567]
[1727774577660,3.87443325,2645.6,2645.3,23.7227567]
[1727774578166,3.87443325,2645.6,2645.4,19.43]
[1727774578541,3.77993,2645.6,2645.4,19.43]
[1727774578867,0.09450323,2645.5,2645.4,19.43]
[1727774580771,0.09450323,2645.5,2645.4,19.48849795]
[1727774582776,3.87443313,2645.6,2645.4,19.48849795]
[1727774583838,3.77993,2645.6,2645.4,19.48849795]
[1727774584168,3.77993,2645.6,2645.4,0.05849795]
[1727774586268,3.87422308,2645.7,2645.4,0.05849795]
[1727774586469,3.77972,2645.7,2645.4,0.05849795]
[1727774587477,1.94783496,2646.1,2645.6,0.8104]
[1727774587781,3.77914,2646.1,2646.0,4.2941567]
[1727774588107,3.77879,2646.4,2646.0,4.2941567]
[1727774588285,3.87326655,2646.4,2646.0,8.13137594]
[1727774588438,0.09447655,2646.4,2646.3,3.4837567]
[1727774588836,3.87305338,2646.5,2646.3,3.54123913]
[1727774589766,3.77858,2646.5,2646.3,3.54123913]
[1727774591180,3.77843,2646.6,2646.3,3.54123913]
[1727774591391,3.77829,2646.7,2646.5,3.4837567]
[1727774591682,3.87289389,2646.6,2646.5,3.4837567]
[1727774594596,0.09446389,2646.6,2646.5,3.4837567]
[1727774597569,0.09446389,2646.6,2646.5,1.60643815]
[1727774598475,3.87275378,2646.7,2646.5,1.60643815]
[1727774598675,0.09446378,2646.7,2646.5,1.60643815]
[1727774598998,0.09446162,2646.8,2646.5,1.60643815]
[1727774599156,3.87260162,2646.8,2646.7,1.60643815]
[1727774600772,0.09446162,2646.8,2646.7,1.60643815]
[1727774601502,0.09446162,2646.8,2646.7,1.67056088]
[1727774610223,3.87260162,2646.8,2646.7,1.67056088]
[1727774616429,3.77809,2646.9,2646.7,1.67056088]
[1727774617151,3.77794,2647.0,2646.7,1.67056088]
[1727774617341,3.77759,2647.2,2646.8,0.7817]
[1727774617640,3.87203827,2647.2,2647.1,1.60643815]
[1727774617840,3.87203827,2647.2,2647.1,1.67843985]
[1727774620900,3.77759,2647.2,2647.1,1.67843985]
[1727774621241,3.77731,2647.4,2647.2,0.7688]
[1727774621401,3.77715,2647.5,2647.3,1.60643815]
[1727774621402,3.7772,2647.5,2647.3,1.60643815]
[1727774621606,3.7772,2647.5,2647.3,1.67804005]
[1727774627328,3.77729,2647.4,2647.3,1.67804005]
[1727774627732,4.63732281,2647.4,2647.3,0.0716019]
[1727774627951,3.77776,2647.1,2646.8,20.2208]
[1727774628290,3.77776,2647.1,2646.8,19.43]
[1727774628291,0.0944464,2647.0,2646.8,19.43]
[1727774628550,3.8723664,2647.0,2646.9,1.60643815]
[1727774630650,4.6808664,2647.0,2646.9,1.60643815]
[1727774631305,4.6808664,2647.0,2646.9,1.67867614]
[1727774634191,5.86690136,2647.0,2646.9,1.67867614]
[1727774634749,4.6808664,2647.0,2646.9,1.67867614]
[1727774635057,5.86690136,2647.0,2646.9,1.67867614]
[1727774638209,1.28048136,2647.0,2646.9,1.67867614]
[1727774638497,1.28048556,2647.2,2647.0,0.7529]
[1727774638652,5.05819556,2647.2,2647.1,1.60643815]
[1727774638853,5.05819556,2647.2,2647.1,1.69023344]
[1727774640884,3.8721606,2647.2,2647.1,1.69023344]
[1727774641088,5.0601857,2647.2,2647.1,1.69023344]
[1727774641290,3.8721606,2647.2,2647.1,1.69023344]
[1727774641709,5.06026833,2647.2,2647.1,1.69023344]
[1727774643160,3.8721606,2647.2,2647.1,1.69023344]
[1727774643493,5.45354054,2647.2,2647.1,1.69023344]
[1727774645296,3.8721606,2647.2,2647.1,1.69023344]
[1727774646482,5.85299066,2647.2,2647.1,0.08379529]
[1727774646694,3.8721606,2647.2,2646.9,1.60643815]
[1727774646872,4.96723724,2647.0,2646.9,1.60643815]
[1727774647597,2.39653632,2647.0,2646.6,1.60643815]
[1727774647905,3.77829,2646.7,2646.4,1.60643815]
[1727774648409,3.77829,2646.7,2646.1,19.43]
[1727774648410,3.77871,2646.4,2646.1,19.43]
[1727774648596,1.18948264,2646.7,2646.1,19.43]
[1727774648597,3.77857,2646.5,2646.2,1.60643815]
[1727774648794,7.55726,2646.5,2646.2,1.60643815]
[1727774648995,5.06252087,2646.5,2646.2,1.60643815]
[1727774649348,5.06252087,2646.5,2646.4,1.60643815]
[1727774651107,5.06252087,2646.5,2646.2,1.60643815]
[1727774652271,3.87303823,2646.5,2646.2,1.60643815]
[1727774652501,3.87303823,2646.5,2646.4,1.60643815]
[1727774653500,0.09446823,2646.5,2646.4,1.60643815]
[1727774654015,3.87303823,2646.5,2646.4,1.60643815]
[1727774654514,1.18948264,2646.6,2646.5,0.7755]
[1727774654680,1.18948264,2646.7,2646.5,1.01369381]
[1727774654876,4.96745264,2647.0,2646.6,5.38478815]
[1727774655084,5.06190497,2647.0,2646.8,1.60643815]
[1727774656368,4.96745264,2647.0,2646.8,1.60643815]
[1727774657575,8.74539264,2647.0,2646.7,3.48018783]
[1727774658423,4.96742264,2647.0,2646.7,3.48018783]
[1727774658712,5.0618749,2647.0,2646.7,3.48018783]
[1727774659218,6.17002632,2647.2,2646.9,4.28828783]
[1727774659219,1.18948264,2647.2,2646.9,4.28828783]
[1727774659403,1.18948264,2647.5,2647.2,0.798]
[1727774659617,1.18948264,2647.5,2647.4,3.48018783]
[1727774659811,1.18948264,2647.6,2647.4,3.48018783]
[1727774659986,4.96636264,2647.7,2647.4,3.48018783]
[1727774660320,4.96636264,2647.7,2647.6,3.48018783]
[1727774660613,4.96636264,2647.7,2647.6,3.56279594]
[1727774660814,5.06079014,2647.7,2647.6,3.56279594]
[1727774660974,4.96636264,2647.7,2647.6,3.56279594]
[1727774661178,5.06079013,2647.7,2647.6,3.56279594]
[1727774663229,5.06079013,2647.7,2647.6,0.08260811]
[1727774663608,3.777,2647.6,2647.5,3.48018783]
[1727774663833,3.87142922,2647.6,2647.5,3.48018783]
[1727774676536,3.87142922,2647.6,2647.5,3.56259468]
[1727774677969,3.87142922,2647.6,2647.5,1.60541576]
[1727774687243,3.7776,2647.2,2646.9,0.8005]
[1727774687447,0.09444016,2647.3,2646.9,0.8005]
[1727774687675,3.77782,2647.1,2646.9,0.8005]
[1727774688191,3.77782,2647.1,2646.9,2.40591576]
[1727774690581,3.77782,2647.1,2646.3,22.43]
[1727774690582,0.7977,2646.3,2645.6,0.7898]
[1727774690917,3.77806,2646.9,2645.5,19.43]
[1727774690918,3.77857,2646.5,2646.2,1.60541576]
[1727774691142,3.87298946,2646.6,2646.4,1.60541576]
[1727774692200,3.77857,2646.5,2646.4,1.60541576]
[1727774701942,3.77845,2646.6,2646.4,1.60541576]
[1727774703079,3.77857,2646.5,2646.4,1.60541576]
[1727774708358,3.77845,2646.6,2646.4,1.60541576]
[1727774708559,3.77857,2646.5,2646.4,1.60541576]
[1727774709160,4.58847,2646.5,2646.0,0.7649]
[1727774709322,0.09447509,2646.4,2646.1,1.60541576]
[1727774709517,3.77886,2646.3,2646.1,1.60541576]
[1727774714263,0.09447509,2646.4,2646.1,1.60541576]
[1727774714468,8.36728,2646.5,2646.1,1.60541576]
[1727774714662,4.58858,2646.5,2646.3,1.60541576]
[1727774714961,3.77872,2646.4,2646.3,1.60541576]
[1727774715323,4.58858,2646.5,2646.3,1.60541576]
[1727774716663,8.36723,2646.5,2646.3,1.60541576]
[1727774721576,3.77865,2646.5,2646.3,1.60541576]
[1727774722339,3.77871,2646.4,2646.3,1.60541576]
[1727774722687,3.77859,2646.5,2646.3,1.60541576]
[1727774725162,0.7702,2646.4,2645.7,7.41]
[1727774725472,0.7702,2646.1,2645.7,1.60541576]
[1727774725672,3.7795,2645.9,2645.7,1.60541576]
[1727774726077,3.77957,2645.8,2645.7,1.60541576]
[1727774726476,3.77957,2645.8,2645.5,0.39532666]
[1727774726703,3.78008,2645.5,2645.1,7.41]
[1727774726898,3.78008,2645.5,2645.2,1.60541576]
[1727774727107,3.78008,2645.5,2645.2,1.688054]
[1727774727320,4.61002,2645.7,2645.2,1.688054]
[1727774727321,3.77986,2645.6,2645.2,1.688054]
[1727774727669,3.77986,2645.6,2645.2,5.468474]
[1727774727919,3.77986,2645.6,2645.4,1.60541576]
[1727774728417,3.87435872,2645.6,2645.4,1.60541576]
[1727774729714,0.09449872,2645.6,2645.4,1.60541576]
[1727774730131,3.87439872,2645.6,2645.4,1.60541576]
[1727774736205,3.87439872,2645.6,2645.4,1.68804281]
[1727774736900,3.87439872,2645.6,2645.4,1.67605081]
[1727774737101,0.09449872,2645.6,2645.4,1.67605081]
[1727774738534,0.09449872,2645.6,2645.4,0.08262705]
[1727774738535,3.78,2645.5,2645.4,0.08262705]
[1727774744535,3.87438479,2645.6,2645.4,0.08262705]
[1727774744930,0.09450479,2645.6,2645.5,1.60541576]
[1727774745138,4.70451161,2645.7,2645.5,1.60541576]
[1727774746037,5.76254858,2645.9,2645.5,1.60541576]
[1727774746256,3.77957,2645.8,2645.7,1.60541576]
[1727774746683,5.85697423,2645.9,2645.7,1.60541576]
[1727774746856,0.09449565,2645.9,2645.7,1.60541576]
[1727774747223,3.87394565,2645.9,2645.7,1.60541576]
[1727774748071,0.09449565,2645.9,2645.7,2.41641576]
[1727774748362,3.87371952,2646.1,2645.7,6.81573834]
[1727774748712,3.87354718,2646.2,2646.0,1.60541576]
[1727774749069,0.09448718,2646.2,2646.0,1.60541576]
[1727774749225,4.96542858,2646.4,2646.0,1.60541576]
[1727774749423,3.87326749,2646.4,2646.3,1.60541576]
[1727774750447,1.95753858,2646.5,2646.3,1.60541576]
[1727774750448,3.87304213,2646.5,2646.3,1.60541576]
[1727774751636,3.77871,2646.4,2646.3,1.60541576]
[1727774751959,3.8731797,2646.4,2646.3,1.60541576]
[1727774753374,0.0944697,2646.4,2646.3,1.60541576]
[1727774753574,3.8731797,2646.4,2646.3,1.60541576]
[1727774753945,0.0944697,2646.4,2646.3,1.60541576]
[1727774754343,0.0944697,2646.4,2645.7,4.53764]
[1727774754344,3.77907,2646.2,2645.7,4.53764]
[1727774754646,3.87374976,2646.1,2645.8,1.60541576]
[1727774755453,0.09447976,2646.1,2645.8,1.60541576]
[1727774755654,3.77935,2646.0,2645.8,1.60541576]
[1727774756332,7.55878,2646.0,2645.8,1.60541576]
[1727774756564,3.87383802,2646.0,2645.8,1.60541576]
[1727774758474,0.09448802,2646.0,2645.8,1.60541576]
[1727774760370,3.77943,2645.9,2645.8,1.60541576]
[1727774760994,0.88658802,2646.0,2645.8,1.60541576]
[1727774761569,4.66587802,2646.0,2645.8,1.60541576]
[1727774763670,0.88658802,2646.0,2645.8,1.60541576]
[1727774764502,4.66590802,2646.0,2645.8,1.60541576]
[1727774767278,0.09448802,2646.0,2645.8,1.60541576]
[1727774767676,5.06032466,2646.1,2645.8,1.60541576]
[1727774769367,5.06032466,2646.1,2646.0,1.60541576]
[1727774770059,1.28112466,2646.1,2646.0,1.60541576]
[1727774770263,1.18663858,2646.1,2646.0,1.60541576]
[1727774770577,1.18663858,2646.2,2646.0,1.60541576]
[1727774770779,1.18663858,2646.3,2646.1,0.7823]
[1727774771018,1.18663858,2646.4,2646.2,1.60541576]
[1727774771310,1.18663858,2646.4,2646.2,5.38440576]
[1727774771465,1.18663858,2646.4,2646.2,1.60541576]
[1727774771806,1.28111177,2646.5,2646.2,1.60541576]
[1727774771978,1.28111177,2646.5,2646.4,1.60541576]
[1727774772486,1.18663858,2646.5,2646.4,1.60541576]
[1727774775630,1.18663858,2646.7,2646.4,6.18812576]
[1727774775876,4.96490858,2646.8,2646.6,1.60541576]
[1727774776305,1.6766447,2646.9,2646.6,1.60541576]
[1727774776306,4.96466858,2646.9,2646.6,1.60541576]
[1727774776508,4.96466858,2646.9,2646.8,1.60541576]
[1727774777222,5.05912298,2646.9,2646.8,1.60541576]
[1727774777725,0.0944544,2646.9,2646.8,1.60541576]
[1727774777923,3.8724544,2646.9,2646.8,1.60541576]
[1727774780583,0.0944544,2646.9,2646.8,1.60541576]
[1727774781194,3.8724544,2646.9,2646.8,1.60541576]
[1727774784229,1.18663858,2647.1,2646.8,2.39601576]
[1727774784434,3.77774,2647.1,2647.0,1.60541576]
[1727774784603,3.77758,2647.2,2647.0,1.60541576]
[1727774784930,3.87202435,2647.2,2647.0,1.60541576]
[1727774785906,3.77771,2647.1,2647.0,1.60541576]
[1727774787092,3.7776,2647.2,2647.0,1.60541576]
[1727774792469,0.09444438,2647.3,2647.0,2.22283034]
[1727774792757,3.77706,2647.6,2647.1,4.60324222]
[1727774792840,3.777,2647.7,2647.2,0.07554493]
[1727774793042,3.777,2647.7,2647.2,4.23779349]
[1727774793345,1.18663858,2647.9,2647.6,1.60541576]
[1727774793642,3.77643,2648.0,2647.8,1.60541576]
[1727774794020,3.7765,2648.0,2647.8,1.60541576]
[1727774794225,3.77657,2647.9,2647.8,1.60541576]
[1727774794419,7.55307,2648.0,2647.8,1.60541576]
[1727774794652,3.77657,2647.9,2647.8,1.60541576]
[1727774795955,3.77652,2648.0,2647.8,1.60541576]
[1727774797240,3.77657,2647.9,2647.8,1.60541576]
[1727774798170,3.77657,2647.9,2647.7,0.7653]
[1727774798334,3.77657,2647.9,2647.6,1.60541576]
[1727774801963,3.77657,2647.9,2647.6,2.59847534]
[1727774802930,3.87086362,2648.0,2647.6,2.59847534]
[1727774804057,3.87086362,2648.0,2647.6,6.37545534]
[1727774805636,0.09441362,2648.0,2647.6,6.37544534]
[1727774805972,3.7763,2648.1,2647.8,1.60541576]
[1727774805973,7.55275,2648.1,2647.8,1.60541576]
[1727774806871,3.77635,2648.1,2647.9,0.789]
[1727774807242,3.77635,2648.1,2648.0,1.60541576]
[1727774808342,0.7901,2648.9,2648.1,0.8315]
[1727774808669,0.7901,2648.9,2648.5,1.60541576]
[1727774808670,3.77565,2648.6,2648.5,1.60541576]
[1727774809433,4.56536,2648.9,2648.5,1.60541576]
[1727774809635,3.7755,2648.7,2648.5,1.60541576]
[1727774809955,3.77557,2648.6,2648.5,1.60541576]
[1727774810159,7.55101,2648.7,2648.5,1.60541576]
[1727774810533,3.7755,2648.7,2648.5,1.60541576]
[1727774810732,3.77557,2648.6,2648.5,1.60541576]
[1727774812168,3.77582,2648.5,2648.1,0.8315]
[1727774812369,7.5518,2648.4,2648.2,1.60541576]
[1727774812574,3.77586,2648.4,2648.2,1.60541576]
[1727774813375,3.776,2648.3,2648.2,1.60541576]
[1727774813701,3.776,2648.3,2647.9,0.7979]
[1727774814348,3.776,2648.3,2648.0,1.60541576]
[1727774814532,3.776,2648.3,2648.0,2.41621353]
[1727774815428,3.8702617,2648.4,2648.0,2.41621353]
[1727774815429,7.55183,2648.4,2648.0,2.41621353]
[1727774815633,3.77586,2648.4,2648.0,2.41621353]
[1727774815867,3.77615,2648.2,2648.0,1.60541576]
[1727774816711,3.77603,2648.3,2648.0,1.60541576]
[1727774819601,0.09440083,2648.4,2648.0,1.60541576]
[1727774819883,3.87028083,2648.4,2648.0,1.60541576]
[1727774820765,3.87028083,2648.4,2648.0,5.38184576]
[1727774820966,3.77588,2648.4,2648.0,5.38184576]
[1727774821478,3.87028091,2648.4,2648.0,5.38184576]
[1727774822181,3.77604,2648.3,2648.0,1.60541576]
[1727774822354,1.18663858,2648.9,2648.1,0.8014]
[1727774822554,3.77573,2648.5,2648.2,1.60541576]
[1727774823567,3.77552,2648.7,2648.4,1.60541576]
[1727774823821,3.77546,2648.7,2648.4,1.60541576]
[1727774824082,3.77546,2648.7,2648.4,2.40681576]
[1727774824478,3.77559,2648.6,2648.4,2.40681576]
[1727774824646,3.77544,2648.7,2648.4,2.40681576]
[1727774825340,3.77565,2648.6,2648.4,2.40681576]
[1727774828053,3.77545,2648.7,2648.4,2.40681576]
[1727774829446,3.77564,2648.6,2648.4,2.40681576]
[1727774829963,7.55135,2648.6,2648.4,2.40681576]
[1727774830264,7.55134,2648.6,2648.4,2.40681576]
[1727774830468,3.7756,2648.6,2648.4,2.40681576]
[1727774830660,3.77572,2648.5,2648.4,2.40681576]
[1727774830980,3.7756,2648.6,2648.4,2.40681576]
[1727774831180,3.77608,2648.3,2648.0,2.38611576]
[1727774831589,3.77624,2648.2,2648.0,2.38611576]
[1727774832462,3.77621,2648.2,2648.0,2.38611576]
[1727774832677,3.77629,2648.1,2648.0,2.38611576]
[1727774834047,3.77629,2648.1,2647.8,2.38801576]
[1727774834482,3.77633,2648.1,2647.8,2.38801576]
[1727774837495,3.77646,2648.0,2647.8,2.38801576]
[1727774838751,1.28105051,2648.2,2647.8,2.38801576]
[1727774838752,5.05728051,2648.2,2647.8,2.38801576]
[1727774838956,3.77632,2648.1,2647.8,2.38801576]
[1727774839508,3.77652,2648.0,2647.8,2.38801576]
[1727774839659,3.7763,2648.1,2647.8,2.38801576]
[1727774841402,4.96280858,2648.2,2647.8,2.38801576]
[1727774842411,4.96280858,2648.2,2647.8,2.46354265]
[1727774842614,4.96280858,2648.2,2647.8,2.38801576]
[1727774842812,3.77631,2648.1,2647.8,2.38801576]
[1727774843686,3.77631,2648.1,2648.0,1.60541576]
[1727774844079,5.35824477,2648.3,2648.1,0.8149]
[1727774844080,1.18663858,2648.3,2648.1,0.8149]
[1727774844278,4.96251858,2648.4,2648.2,1.60541576]
[1727774844893,3.776,2648.3,2648.2,1.60541576]
[1727774845088,1.18663858,2648.4,2648.2,1.60541576]
[1727774846225,1.18663858,2648.4,2648.2,2.24896749]
[1727774847126,3.776,2648.3,2648.2,2.24896749]
[1727774847226,3.776,2648.3,2648.2,1.60541576]
[1727774847797,3.77614,2648.2,2648.1,0.8149]
[1727774848515,4.96263858,2648.3,2648.0,1.60541576]
[1727774848719,3.77627,2648.2,2648.0,1.60541576]
[1727774848886,3.77629,2648.1,2647.9,0.7831]
[1727774849224,3.77629,2648.1,2648.0,1.60541576]
[1727774849420,4.96292858,2648.1,2648.0,1.60541576]
[1727774852851,1.18663858,2648.1,2648.0,2.67226734]
[1727774853024,1.98279654,2648.3,2648.1,0.828]
[1727774853025,1.18663858,2648.3,2648.1,0.828]
[1727774853189,1.18663858,2648.4,2648.2,1.60541576]
[1727774853390,1.18663858,2648.4,2648.3,1.60541576]
[1727774854145,5.35778477,2648.6,2648.3,1.60541576]
[1727774854146,1.18663858,2648.5,2648.3,1.60541576]
[1727774855417,1.18663858,2648.6,2648.4,0.7526]
[1727774855594,1.18663858,2648.6,2648.5,1.60541576]
[1727774857632,4.96220858,2648.6,2648.5,1.60541576]
[1727774857906,4.96208858,2648.7,2648.5,1.60541576]
[1727774858533,4.96208858,2648.7,2648.6,0.7959]
[1727774858534,1.18663858,2648.7,2648.6,0.7959]
[1727774858736,1.18663858,2648.9,2648.6,4.81160158]
[1727774858889,1.18663858,2648.9,2648.7,1.60541576]
[1727774859092,4.96173858,2649.0,2648.7,1.60541576]
[1727774859526,1.18663858,2649.1,2648.7,1.60541576]
[1727774859695,4.96151858,2649.1,2648.7,2.24711749]
[1727774859895,1.18663858,2649.0,2648.7,2.24711749]
[1727774860296,4.96149858,2649.1,2648.7,2.24711749]
[1727774860918,4.96149858,2649.1,2648.7,6.02253749]
[1727774861418,1.18663858,2649.1,2648.7,6.02253749]
[1727774861624,1.18663858,2649.1,2648.8,1.08340591]
[1727774862529,5.77305858,2649.2,2648.8,1.08340591]
[1727774862732,9.64225394,2649.2,2648.8,1.08340591]
[1727774863031,9.54787858,2649.2,2648.8,1.08340591]
[1727774864442,3.77486,2649.1,2648.8,1.08340591]
[1727774866938,3.86923542,2649.1,2648.8,1.08340591]
[1727774867136,3.77502,2649.0,2648.7,2.24711749]
[1727774867357,7.55013,2649.0,2648.7,2.24711749]
[1727774867633,3.77502,2649.0,2648.7,2.24711749]
[1727774867849,3.77516,2648.9,2648.7,1.60541576]
[1727774868203,3.77502,2649.0,2648.7,1.60541576]
[1727774868940,3.86955076,2648.9,2648.7,1.60541576]
[1727774869167,3.86963076,2648.9,2648.4,7.54174]
[1727774869360,3.86963076,2648.9,2648.4,9.414503]
[1727774869505,3.86963076,2648.9,2648.5,1.60541576]
[1727774870448,5.05626934,2648.9,2648.5,1.60541576]
[1727774870600,3.86963076,2648.9,2648.5,1.60541576]
[1727774870815,3.77532,2648.8,2648.5,1.60541576]
[1727774871022,3.7755,2648.7,2648.5,1.60541576]
[1727774871325,0.09438898,2648.8,2648.5,1.60541576]
[1727774871326,3.86969898,2648.8,2648.5,1.60541576]
[1727774871526,3.77544,2648.7,2648.5,1.60541576]
[1727774871912,0.09438898,2648.8,2648.5,1.60541576]
[1727774872120,3.86974898,2648.8,2648.5,1.60541576]
[1727774877150,3.77544,2648.7,2648.5,1.60541576]
[1727774877446,0.09438898,2648.8,2648.5,1.60541576]
[1727774877623,3.86974898,2648.8,2648.5,1.60541576]
[1727774878821,3.77544,2648.7,2648.5,1.60541576]
[1727774879460,0.09438898,2648.8,2648.5,1.60541576]
[1727774879648,3.86976898,2648.8,2648.5,1.60541576]
[1727774880457,7.64519898,2648.8,2648.5,1.60541576]
[1727774880761,7.64519898,2648.8,2648.4,0.7659]
[1727774880914,3.86976898,2648.8,2648.4,0.7659]
[1727774881593,7.64518898,2648.8,2648.4,0.7659]
[1727774881763,3.86976898,2648.8,2648.4,0.7659]
[1727774883068,0.09438898,2648.8,2648.3,5.38140576]
[1727774883231,7.55096,2648.7,2648.3,5.38140576]
[1727774883562,3.77544,2648.7,2648.3,5.38140576]
[1727774884168,6.15934477,2648.9,2648.6,0.7776]
[1727774884169,4.96180858,2648.9,2648.6,0.7776]
[1727774884467,3.77517,2648.9,2648.6,0.7776]
[1727774884649,3.8695548,2648.9,2648.6,0.7776]
[1727774885328,3.77517,2648.9,2648.6,0.7776]
[1727774885559,3.86955479,2648.9,2648.6,0.7776]
[1727774886031,3.7753,2648.8,2648.6,0.7776]
[1727774886232,3.7753,2648.8,2648.5,1.60541576]
[1727774886543,3.86985123,2648.7,2648.5,1.60541576]
[1727774886869,3.77537,2648.8,2648.5,1.60541576]
[1727774887082,3.77555,2648.7,2648.5,1.60541576]
[1727774887368,3.77559,2648.6,2648.4,0.8217]
[1727774887587,4.55274,2648.4,2647.9,4.54576]
[1727774887782,0.09440611,2648.4,2648.1,5.38169576]
[1727774888082,4.9638325,2648.5,2648.2,0.831]
[1727774888083,3.77573,2648.5,2648.2,0.831]
[1727774888480,4.9637725,2648.5,2648.2,0.831]
[1727774888846,1.1880425,2648.6,2648.2,1.82991058]
[1727774889047,3.77564,2648.6,2648.3,2.37511576]
[1727774889647,5.05807699,2648.6,2648.3,2.37511576]
[1727774890085,3.77582,2648.5,2648.1,2.35751576]
[1727774892789,3.77582,2648.5,2648.1,6.13376576]
[1727774893558,3.77579,2648.5,2648.1,6.13376576]
[1727774893757,8.7396725,2648.5,2648.1,2.35751576]
[1727774894070,3.77589,2648.4,2648.1,2.35751576]
[1727774894254,3.77601,2648.3,2648.1,2.35751576]
[1727774894464,3.77588,2648.4,2648.1,2.35751576]
[1727774894812,4.9639225,2648.4,2648.1,2.35751576]
[1727774894993,3.77607,2648.3,2648.1,2.35751576]
[1727774895514,4.9639225,2648.4,2648.1,0.7521]
[1727774895721,8.7399225,2648.4,2647.9,6.14149576]
[1727774896019,3.77617,2648.2,2647.9,0.7596]
[1727774896519,7.5524,2648.2,2647.9,0.7596]
[1727774896873,3.77617,2648.2,2647.9,0.7596]
[1727774898182,3.77633,2648.1,2647.8,1.60541576]
[1727774898428,3.87074066,2648.1,2647.8,1.60541576]
[1727774898787,3.77645,2648.0,2647.7,0.8204]
[1727774899117,3.87074066,2648.1,2647.7,0.8204]
[1727774899118,5.05875316,2648.1,2647.7,0.8204]
[1727774900211,8.83514316,2648.1,2647.7,0.8204]
[1727774900377,4.9643425,2648.1,2647.7,0.8204]
[1727774900577,4.9643425,2648.1,2647.7,4.59725]
[1727774900578,5.058755,2648.1,2647.7,4.59725]
[1727774901387,8.835145,2648.1,2647.7,4.59725]
[1727774901617,8.7407325,2648.1,2647.7,4.59725]
[1727774901911,1.1880425,2648.1,2648.0,1.60541576]
[1727774902111,1.1880425,2648.2,2648.0,1.60541576]
[1727774902312,4.9641125,2648.3,2648.0,1.60541576]
[1727774902731,1.1880425,2648.2,2648.0,1.60541576]
[1727774903535,3.77617,2648.2,2648.0,1.60541576]
[1727774903825,4.9642125,2648.2,2648.0,1.60541576]
[1727774904496,3.77617,2648.2,2648.0,1.60541576]
[1727774906239,3.77629,2648.1,2648.0,1.60541576]
[1727774909107,3.77629,2648.1,2647.8,1.60541576]
[1727774909420,3.77645,2648.0,2647.8,1.60541576]
[1727774911504,3.77643,2648.0,2647.8,1.60541576]
[1727774911812,3.77643,2648.0,2647.7,0.8204]
[1727774912036,3.77657,2647.9,2647.7,0.8204]
[1727774913545,3.77657,2647.9,2647.4,23.20717]
[1727774913546,3.77672,2647.8,2647.4,23.20722]
[1727774913738,3.77672,2647.8,2647.5,5.46795472]
[1727774914339,3.77694,2647.7,2647.5,5.46795472]
[1727774914495,3.77675,2647.8,2647.5,5.46795472]
[1727774916446,3.77711,2647.6,2647.4,19.43]
[1727774916614,3.87157369,2647.5,2647.4,19.43]
[1727774916816,3.77714,2647.5,2647.4,19.43]
[1727774919540,3.777,2647.7,2647.4,20.1838]
[1727774919741,3.777,2647.7,2647.4,22.74047058]
[1727774921150,3.77701,2647.6,2647.4,22.74047058]
[1727774923646,3.77678,2647.8,2647.5,1.60541576]
[1727774924642,3.7766,2647.9,2647.5,5.38255576]
[1727774924931,4.9643925,2648.1,2647.7,0.7717]
[1727774925166,3.77655,2648.0,2647.7,0.7717]
[1727774925325,0.09441499,2648.1,2647.6,3.19003063]
[1727774925527,1.1880425,2648.2,2647.5,2.37711576]
[1727774925528,3.77686,2647.7,2647.5,2.37711576]
[1727774925849,3.77686,2647.7,2647.5,0.7717]
[1727774926437,3.77673,2647.8,2647.5,0.7717]
[1727774929056,3.77673,2647.8,2647.5,2.37711576]
[1727774930293,3.77659,2647.9,2647.5,6.15424576]
[1727774930454,3.77659,2647.9,2647.6,1.13473818]
[1727774932194,3.77673,2647.8,2647.6,1.13473818]
[1727774935690,3.77686,2647.7,2647.5,2.37711576]
[1727774935898,3.77701,2647.6,2647.3,21.81131576]
[1727774936480,3.77702,2647.6,2647.3,20.2059]
[1727774936699,3.77702,2647.6,2647.3,21.81131576]
[1727774937226,3.77686,2647.7,2647.3,25.58874576]
[1727774938110,1.1880425,2647.8,2647.3,28.52538134]
[1727774938325,1.1880425,2647.8,2647.7,1.60541576]
[1727774938497,4.9646525,2647.9,2647.7,1.60541576]
[1727774939025,8.7413025,2647.9,2647.7,1.60541576]
[1727774939205,4.9646525,2647.9,2647.7,1.60541576]
[1727774939400,1.1880425,2647.8,2647.7,1.60541576]
[1727774939632,4.9647625,2647.8,2647.7,1.60541576]
[1727774940034,1.1880425,2647.8,2647.7,1.60541576]
[1727774940194,4.9646525,2647.9,2647.7,1.60541576]
[1727774940525,1.1880425,2647.8,2647.7,1.60541576]
[1727774942396,4.9647625,2647.8,2647.7,1.60541576]
[1727774942596,4.9647625,2647.8,2647.6,0.7813]
[1727774942895,1.1880425,2647.8,2647.6,0.7813]
[1727774943691,4.9648125,2647.8,2647.6,0.7813]
[1727774944165,1.1880425,2647.7,2647.6,0.7813]
[1727774944471,4.9648125,2647.8,2647.6,0.7813]
[1727774946595,1.1880425,2647.8,2647.6,0.7813]
[1727774946763,4.9648325,2647.8,2647.6,0.7813]
[1727774948070,1.1880425,2647.8,2647.6,0.7813]
[1727774948269,4.9649025,2647.7,2647.6,0.7813]
[1727774948586,5.35904477,2647.7,2647.5,1.60541576]
[1727774948886,1.18993027,2647.6,2647.5,1.60541576]
[1727774949112,4.96693027,2647.6,2647.4,0.7571]
[1727774950293,1.18993027,2647.5,2647.4,0.7571]
[1727774950958,4.96693027,2647.6,2647.4,0.7571]
[1727774951480,1.18993027,2647.5,2647.4,0.7571]
[1727774953297,1.18993027,2647.6,2647.4,0.7571]
[1727774953713,1.18993027,2647.5,2647.4,0.7571]
[1727774955879,1.58218477,2647.7,2647.4,0.7571]
[1727774955880,1.18993027,2647.6,2647.4,0.7571]
[1727774956080,1.18993027,2647.6,2647.5,2.59714534]
[1727774960501,1.19071484,2647.6,2647.5,2.59714534]
[1727774962349,1.19071484,2647.6,2647.5,1.60541576]
[1727774964503,5.35907477,2647.7,2647.5,1.60541576]
[1727774964837,1.19096214,2647.6,2647.5,1.60541576]
[1727774965049,5.35907477,2647.7,2647.5,1.60541576]
[1727774965709,5.35910477,2647.7,2647.4,0.7571]
[1727774966044,1.19101665,2647.5,2647.4,2.36251576]
[1727774967917,1.19101665,2647.5,2647.4,2.9840635]